fUSD/lending_fUSD_20240729
["ID","MTS","AMOUNT","RATE_DAILY","PERIOD"]
[333506479,1722221441865,-500.0,0.00010958,2]
[333506481,1722221441874,-500.0,0.00010958,2]
[333506482,1722221441884,-500.0,0.00010958,2]
[333506484,1722221441893,-500.0,0.00010958,2]
[333506486,1722221441902,-500.0,0.00010958,2]
[333506488,1722221441911,-504.83,0.00010958,2]
[333506490,1722221441921,-500.0,0.00010958,2]
[333506492,1722221441930,-500.0,0.00010958,2]
[333506494,1722221441940,-500.0,0.00010958,2]
[333506496,1722221441949,-624.75,0.00010958,2]
[333506498,1722221441958,-500.0,0.00010958,2]
[333506500,1722221441967,-500.0,0.00010958,2]
[333506502,1722221441976,-500.0,0.00010958,2]
[333506503,1722221441985,-500.0,0.00010958,2]
[333506505,1722221441994,-500.0,0.00010958,2]
[333506507,1722221442003,-501.87505125,0.00010958,2]
[333506509,1722221442012,-500.0,0.00010958,2]
[333506510,1722221442021,-500.0,0.00010958,2]
[333506511,1722221442031,-500.0,0.00010958,2]
[333506512,1722221442040,-536.17,0.00010958,2]
[333506513,1722221442050,-500.0,0.00010958,2]
[333506514,1722221442059,-500.0,0.00010958,2]
[333506515,1722221442068,-500.0,0.00010958,2]
[333506516,1722221442078,-596.42,0.00010958,2]
[333506517,1722221442087,-500.0,0.00010958,2]
[333506518,1722221442097,-500.0,0.00010958,2]
[333506519,1722221442106,-500.0,0.00010958,2]
[333506520,1722221442115,-500.0,0.00010958,2]
[333506521,1722221442125,-500.0,0.00010958,2]
[333506522,1722221442134,-416.0774621,0.00010958,2]
[333506523,1722221442144,-503.60569702,0.00010958,2]
[333506524,1722221442153,-500.0,0.00010958,2]
[333506525,1722221442163,-500.0,0.00010958,2]
[333506526,1722221442172,-500.0,0.00010958,2]
[333506527,1722221442181,-500.0,0.00010958,2]
[333506528,1722221442190,-500.0,0.00010958,2]
[333506529,1722221442199,-500.0,0.00010958,2]
[333506530,1722221442209,-503.80341362,0.00010958,2]
[333506531,1722221442219,-565.69,0.00010958,2]
[333506532,1722221442229,-500.0,0.00010958,2]
[333506533,1722221442239,-507.76070711,0.00010958,2]
[333506534,1722221442248,-500.0,0.00010958,2]
[333506535,1722221442258,-500.0,0.00010958,2]
[333506536,1722221442268,-502.25287289,0.00010958,2]
[333506537,1722221442277,-500.0,0.00010958,2]
[333506538,1722221442286,-501.06859918,0.00010958,2]
[333506539,1722221442295,-501.59850157,0.00010958,2]
[333506540,1722221442304,-500.59,0.00010958,2]
[333506541,1722221442314,-538.18,0.00010958,2]
[333506542,1722221442323,-500.0,0.00010958,2]
[333506543,1722221442333,-500.0,0.00010958,2]
[333506544,1722221442342,-500.0,0.00010958,2]
[333506545,1722221442531,-500.0,0.00010958,2]
[333506546,1722221442541,-500.0,0.00010958,2]
[333506547,1722221442550,-500.0,0.00010958,2]
[333506548,1722221442560,-500.0,0.00010958,2]
[333506549,1722221442569,-500.0,0.00010958,2]
[333506550,1722221442579,-500.0,0.00010958,2]
[333506551,1722221442588,-500.0,0.00010958,2]
[333506552,1722221442598,-500.0,0.00010958,2]
[333506553,1722221442608,-501.08595312,0.00010958,2]
[333506554,1722221442620,-157.53609732,0.00010958,2]
[333506555,1722221442630,-626.07,0.00010958,2]
[333506556,1722221442640,-632.13,0.00010958,2]
[333506557,1722221442649,-456.32211621,0.00010958,2]
[333506558,1722221442658,-509.22128288,0.00010958,2]
[333506559,1722221442668,-504.87441082,0.00010958,2]
[333506560,1722221442677,-534.53806949,0.00010958,2]
[333506561,1722221442686,-502.56435937,0.00010958,2]
[333506562,1722221442695,-504.48667235,0.00010958,2]
[333506563,1722221442705,-562.18096702,0.00010958,2]
[333506564,1722221442715,-172.92694692,0.00010958,2]
[333506565,1722221442724,-505.60053902,0.00010958,2]
[333506566,1722221442734,-507.75501472,0.00010958,2]
[333506567,1722221442743,-539.02766061,0.00010958,2]
[333506568,1722221442752,-503.96713011,0.00010958,2]
[333506569,1722221442761,-508.37377725,0.00010958,2]
[333506570,1722221442771,-235.85477913,0.00010958,2]
[333506571,1722221442780,-288.44222197,0.00010958,2]
[333506572,1722221442789,-502.75106118,0.00010958,2]
[333506573,1722221442799,-161.35838014,0.00010958,2]
[333506574,1722221442808,-504.63258991,0.00010958,2]
[333506575,1722221442818,-509.07390511,0.00010958,2]
[333506576,1722221442827,-502.09965844,0.00010958,2]
[333506577,1722221442836,-512.33652776,0.00010958,2]
[333506578,1722221442846,-505.55732956,0.00010958,2]
[333506579,1722221442855,-507.75547277,0.00010958,2]
[333506580,1722221442864,-502.36933842,0.00010958,2]
[333506581,1722221442880,-512.22334096,0.00010958,2]
[333506582,1722221442889,-526.41875516,0.00010958,2]
[333506583,1722221442899,-506.49439556,0.00010958,2]
[333506584,1722221442908,-529.84816588,0.00010958,2]
[333506585,1722221442917,-505.42512714,0.00010958,2]
[333506586,1722221442926,-372.11279894,0.00010958,2]
[333506587,1722221442935,-533.85747836,0.00010958,2]
[333506588,1722221442944,-500.0,0.00010958,2]
[333506589,1722221442954,-503.97703221,0.00010958,2]
[333506590,1722221442963,-442.07804219,0.00010958,2]
[333506591,1722221442972,-505.59708375,0.00010958,2]
[333506592,1722221442981,-506.55117371,0.00010958,2]
[333506593,1722221442990,-501.890357,0.00010958,2]
[333506594,1722221442999,-426.34939427,0.00010958,2]
[333506595,1722221443009,-229.37008383,0.00010958,2]
[333506596,1722221443018,-277.4072957,0.00010958,2]
[333506597,1722221443028,-503.07720408,0.00010958,2]
[333506598,1722221443037,-500.95917493,0.00010958,2]
[333506599,1722221443046,-505.67785381,0.00010958,2]
[333506600,1722221443055,-352.31453565,0.00010958,2]
[333506601,1722221443064,-224.62475302,0.00010958,2]
[333506602,1722221443073,-509.6733706,0.00010958,2]
[333506603,1722221443083,-500.0,0.00010958,2]
[333506604,1722221443091,-208.4048496,0.00010958,2]
[333506605,1722221443100,-158.69548936,0.00010958,2]
[333506606,1722221443109,-160.70515339,0.00010958,2]
[333506607,1722221443120,-387.8614716,0.00010958,2]
[333506608,1722221443129,-503.07546428,0.00010958,2]
[333506609,1722221443138,-502.37517424,0.00010958,2]
[333506610,1722221443147,-500.0,0.00010958,2]
[333506611,1722221443156,-504.96654535,0.00010958,2]
[333506612,1722221443166,-501.43975511,0.00010958,2]
[333506613,1722221443175,-507.06728988,0.00010958,2]
[333506614,1722221443184,-507.86767477,0.00010958,2]
[333506615,1722221443193,-506.34668263,0.00010958,2]
[333506616,1722221443203,-500.0,0.00010958,2]
[333506617,1722221443212,-486.73297328,0.00010958,2]
[333506618,1722221443222,-505.35518384,0.00010958,2]
[333506619,1722221443231,-504.25965096,0.00010958,2]
[333506620,1722221443240,-504.25503763,0.00010958,2]
[333506621,1722221443250,-500.0,0.00010958,2]
[333506622,1722221443259,-601.75424664,0.00010958,2]
[333506623,1722221443269,-532.92111961,0.00010958,2]
[333506624,1722221443279,-500.0,0.00010958,2]
[333506625,1722221443288,-503.2079759,0.00010958,2]
[333506626,1722221443298,-504.66894501,0.00010958,2]
[333506627,1722221443307,-553.07504912,0.00010958,2]
[333506628,1722221443316,-500.0,0.00010958,2]
[333506629,1722221443325,-249.6155204,0.00010958,2]
[333506630,1722221443334,-504.0217828,0.00010958,2]
[333506631,1722221443343,-512.20536026,0.00010958,2]
[333506632,1722221443352,-435.9871,0.00010958,2]
[333506633,1722221443362,-504.58511493,0.00010958,2]
[333506634,1722221443372,-500.72085501,0.00010958,2]
[333506635,1722221443381,-505.94802748,0.00010958,2]
[333506636,1722221443390,-521.68032973,0.00010958,2]
[333506637,1722221443400,-515.5304744,0.00010958,2]
[333506638,1722221443412,-510.90007911,0.00010958,2]
[333506639,1722221443421,-521.23592362,0.00010958,2]
[333506642,1722221443430,-535.50559368,0.00010958,2]
[333506644,1722221443439,-288.55393118,0.00010958,2]
[333506646,1722221443449,-501.38225176,0.00010958,2]
[333506647,1722221443459,-501.3251001,0.00010958,2]
[333506649,1722221443468,-505.87899816,0.00010958,2]
[333506651,1722221443477,-505.76457053,0.00010958,2]
[333506652,1722221443487,-213.83461658,0.00010958,2]
[333506653,1722221443499,-398.97573476,0.00010958,2]
[333506654,1722221443509,-509.15354465,0.00010958,2]
[333506655,1722221443518,-500.0,0.00010958,2]
[333506656,1722221443527,-510.44952569,0.00010958,2]
[333506657,1722221443536,-181.45369912,0.00010958,2]
[333506658,1722221443545,-580.25082349,0.00010958,2]
[333506659,1722221443554,-515.35992857,0.00010958,2]
[333506660,1722221443564,-506.19454505,0.00010958,2]
[333506661,1722221443573,-502.09501411,0.00010958,2]
[333506662,1722221443582,-507.85670671,0.00010958,2]
[333506663,1722221443592,-500.0,0.00010958,2]
[333506664,1722221443602,-523.21166618,0.00010958,2]
[333506665,1722221443611,-516.64424263,0.00010958,2]
[333506666,1722221443621,-518.18530414,0.00010958,2]
[333506668,1722221443632,-500.0,0.00010958,2]
[333506669,1722221443641,-555.85870954,0.00010958,2]
[333506670,1722221443651,-504.92634543,0.00010958,2]
[333506671,1722221443660,-564.52247594,0.00010958,2]
[333506672,1722221443669,-508.92245633,0.00010958,2]
[333506673,1722221443679,-612.57670651,0.00010958,2]
[333506674,1722221443688,-513.06886052,0.00010958,2]
[333506675,1722221443697,-513.47480066,0.00010958,2]
[333506676,1722221443706,-518.21278344,0.00010958,2]
[333506677,1722221443716,-515.95155077,0.00010958,2]
[333506678,1722221443725,-511.60658901,0.00010958,2]
[333506679,1722221443735,-524.78288177,0.00010958,2]
[333506680,1722221443744,-529.19735919,0.00010958,2]
[333506681,1722221443754,-508.10206711,0.00010958,2]
[333506682,1722221443763,-509.32813956,0.00010958,2]
[333506683,1722221443772,-562.89357439,0.00010958,2]
[333506684,1722221443781,-159.36007679,0.00010958,2]
[333506685,1722221443791,-510.45289215,0.00010958,2]
[333506686,1722221443800,-518.36603338,0.00010958,2]
[333506687,1722221443809,-500.0,0.00010958,2]
[333506688,1722221443818,-501.80106051,0.00010958,2]
[333506689,1722221443828,-509.72518678,0.00010958,2]
[333506690,1722221443837,-515.45478063,0.00010958,2]
[333506691,1722221443847,-502.82670366,0.00010958,2]
[333506692,1722221443856,-547.71663064,0.00010958,2]
[333506693,1722221443865,-501.5926265,0.00010958,2]
[333506694,1722221443876,-551.8177494,0.00010958,2]
[333506695,1722221443885,-169.19128179,0.00010958,2]
[333506696,1722221443895,-533.08327691,0.00010958,2]
[333506697,1722221443904,-528.58739945,0.00010958,2]
[333506698,1722221443913,-513.1884085,0.00010958,2]
[333506699,1722221443923,-511.00671122,0.00010958,2]
[333506700,1722221443933,-503.50112021,0.00010958,2]
[333506701,1722221443942,-363.92921411,0.00010958,2]
[333506702,1722221443951,-533.46591424,0.00010958,2]
[333506703,1722221443960,-591.34388394,0.00010958,2]
[333506704,1722221443969,-562.76822699,0.00010958,2]
[333506705,1722221443978,-521.92619633,0.00010958,2]
[333506706,1722221443987,-502.29006505,0.00010958,2]
[333506707,1722221443996,-515.70154644,0.00010958,2]
[333506708,1722221444006,-500.0,0.00010958,2]
[333506709,1722221444015,-501.05817,0.00010958,2]
[333506710,1722221444024,-512.67041022,0.00010958,2]
[333506711,1722221444033,-510.36247032,0.00010958,2]
[333506712,1722221444043,-524.02990692,0.00010958,2]
[333506713,1722221444051,-500.0,0.00010958,2]
[333506714,1722221444061,-502.84705197,0.00010958,2]
[333506715,1722221444070,-506.37804088,0.00010958,2]
[333506716,1722221444080,-615.31357305,0.00010958,2]
[333506717,1722221444089,-509.48138581,0.00010958,2]
[333506718,1722221444099,-507.09111212,0.00010958,2]
[333506719,1722221444108,-502.90575001,0.00010958,2]
[333506720,1722221444118,-510.36240485,0.00010958,2]
[333506721,1722221444127,-537.90164919,0.00010958,2]
[333506722,1722221444137,-522.99860122,0.00010958,2]
[333506723,1722221444146,-502.50212657,0.00010958,2]
[333506724,1722221444155,-519.72975438,0.00010958,2]
[333506725,1722221444164,-579.47566057,0.00010958,2]
[333506726,1722221444173,-522.50189833,0.00010958,2]
[333506727,1722221444182,-504.0929684,0.00010958,2]
[333506728,1722221444191,-542.29173807,0.00010958,2]
[333506729,1722221444200,-519.48571683,0.00010958,2]
[333506730,1722221444209,-500.0,0.00010958,2]
[333506731,1722221444218,-550.81771668,0.00010958,2]
[333506732,1722221444227,-501.98944338,0.00010958,2]
[333506733,1722221444237,-585.13258533,0.00010958,2]
[333506734,1722221444246,-504.66913651,0.00010958,2]
[333506735,1722221444255,-548.84523338,0.00010958,2]
[333506736,1722221444264,-514.86130163,0.00010958,2]
[333506737,1722221444273,-526.81976295,0.00010958,2]
[333506738,1722221444281,-522.11158259,0.00010958,2]
[333506739,1722221444290,-522.7981121,0.00010958,2]
[333506740,1722221444299,-509.37980712,0.00010958,2]
[333506741,1722221444308,-500.0,0.00010958,2]
[333506742,1722221444317,-629.549237,0.00010958,2]
[333506743,1722221444326,-511.12704447,0.00010958,2]
[333506744,1722221444336,-501.02015927,0.00010958,2]
[333506745,1722221444344,-511.31210454,0.00010958,2]
[333506746,1722221444353,-506.4813976,0.00010958,2]
[333506747,1722221444362,-501.89489852,0.00010958,2]
[333506748,1722221444373,-506.75271233,0.00010958,2]
[333506749,1722221444382,-291.84489169,0.00010958,2]
[333506750,1722221444391,-504.14964354,0.00010958,2]
[333506751,1722221444404,-508.41869975,0.00010958,2]
[333506752,1722221444414,-503.88092371,0.00010958,2]
[333506753,1722221444424,-626.78374587,0.00010958,2]
[333506754,1722221444433,-518.25957199,0.00010958,2]
[333506755,1722221444445,-515.5790855,0.00010958,2]
[333506756,1722221444454,-538.90893059,0.00010958,2]
[333506757,1722221444464,-500.0,0.00010958,2]
[333506758,1722221444474,-500.0,0.00010958,2]
[333506759,1722221444485,-532.69515923,0.00010958,2]
[333506760,1722221444495,-503.33138261,0.00010958,2]
[333506761,1722221444505,-594.83109319,0.00010958,2]
[333506762,1722221444514,-509.19630547,0.00010958,2]
[333506763,1722221444523,-506.49181132,0.00010958,2]
[333506765,1722221444533,-514.61299915,0.00010958,2]
[333506767,1722221444543,-502.94854073,0.00010958,2]
[333506769,1722221444551,-181.42181405,0.00010958,2]
[333506770,1722221444560,-503.00734968,0.00010958,2]
[333506771,1722221444569,-502.45879056,0.00010958,2]
[333506772,1722221444579,-501.02199615,0.00010958,2]
[333506773,1722221444588,-507.49699281,0.00010958,2]
[333506774,1722221444597,-500.0,0.00010958,2]
[333506775,1722221444606,-507.17607445,0.00010958,2]
[333506776,1722221444616,-596.70454504,0.00010958,2]
[333506777,1722221444626,-539.41674976,0.00010958,2]
[333506778,1722221444635,-503.02671565,0.00010958,2]
[333506779,1722221444644,-519.9190763,0.00010958,2]
[333506780,1722221444654,-550.03761932,0.00010958,2]
[333506781,1722221444663,-502.78598528,0.00010958,2]
[333506782,1722221444672,-595.43896613,0.00010958,2]
[333506783,1722221444681,-510.36582059,0.00010958,2]
[333506784,1722221444690,-500.0,0.00010958,2]
[333506785,1722221444699,-512.91703033,0.00010958,2]
[333506786,1722221444709,-532.87079851,0.00010958,2]
[333506787,1722221444718,-509.39761233,0.00010958,2]
[333506788,1722221444728,-504.47932714,0.00010958,2]
[333506789,1722221444737,-503.04035283,0.00010958,2]
[333506790,1722221444747,-602.91441512,0.00010958,2]
[333506791,1722221444756,-512.42714094,0.00010958,2]
[333506792,1722221444766,-552.4791544,0.00010958,2]
[333506793,1722221444775,-503.54086371,0.00010958,2]
[333506794,1722221444784,-516.11254392,0.00010958,2]
[333506795,1722221444794,-504.48715568,0.00010958,2]
[333506796,1722221444803,-610.48664214,0.00010958,2]
[333506797,1722221444812,-507.79078795,0.00010958,2]
[333506798,1722221444822,-527.76101655,0.00010958,2]
[333506799,1722221444831,-502.9244643,0.00010958,2]
[333506800,1722221444840,-500.0,0.00010958,2]
[333506801,1722221444849,-500.0,0.00010958,2]
[333506802,1722221444858,-513.72412175,0.00010958,2]
[333506803,1722221444867,-516.20717065,0.00010958,2]
[333506804,1722221444877,-509.82725782,0.00010958,2]
[333506805,1722221444887,-500.0,0.00010958,2]
[333506806,1722221444896,-217.92726473,0.00010958,2]
[333506807,1722221444905,-502.94616518,0.00010958,2]
[333506808,1722221444914,-510.49000138,0.00010958,2]
[333506809,1722221444923,-521.2479477,0.00010958,2]
[333506810,1722221444932,-545.37001039,0.00010958,2]
[333506811,1722221444941,-516.54869519,0.00010958,2]
[333506812,1722221444951,-527.41498926,0.00010958,2]
[333506813,1722221444960,-503.22847157,0.00010958,2]
[333506814,1722221444969,-500.0,0.00010958,2]
[333506815,1722221444978,-500.0,0.00010958,2]
[333506816,1722221444987,-504.14209181,0.00010958,2]
[333506817,1722221444997,-499.32063861,0.00010958,2]
[333506818,1722221445006,-500.0,0.00010958,2]
[333506819,1722221445015,-523.46987873,0.00010958,2]
[333506820,1722221445024,-589.52366938,0.00010958,2]
[333506821,1722221445033,-503.7580258,0.00010958,2]
[333506822,1722221445043,-504.8937417,0.00010958,2]
[333506823,1722221445053,-515.97913296,0.00010958,2]
[333506824,1722221445062,-513.14757156,0.00010958,2]
[333506825,1722221445071,-520.74975706,0.00010958,2]
[333506826,1722221445080,-585.23926622,0.00010958,2]
[333506827,1722221445090,-516.22279941,0.00010958,2]
[333506828,1722221445099,-534.17797962,0.00010958,2]
[333506829,1722221445108,-504.88545149,0.00010958,2]
[333506830,1722221445118,-503.06814299,0.00010958,2]
[333506831,1722221445127,-501.66261025,0.00010958,2]
[333506832,1722221445137,-500.0,0.00010958,2]
[333506833,1722221445147,-502.98135648,0.00010958,2]
[333506834,1722221445157,-518.92276943,0.00010958,2]
[333506835,1722221445166,-600.79630818,0.00010958,2]
[333506836,1722221445175,-540.99741167,0.00010958,2]
[333506837,1722221445184,-558.8114044,0.00010958,2]
[333506838,1722221445193,-500.0,0.00010958,2]
[333506839,1722221445202,-505.44753503,0.00010958,2]
[333506840,1722221445212,-583.87138911,0.00010958,2]
[333506841,1722221445221,-507.83081189,0.00010958,2]
[333506842,1722221445230,-500.0,0.00010958,2]
[333506843,1722221445239,-552.16680571,0.00010958,2]
[333506844,1722221445249,-529.62305091,0.00010958,2]
[333506845,1722221445258,-531.49103665,0.00010958,2]
[333506846,1722221445267,-503.57391853,0.00010958,2]
[333506847,1722221445276,-595.67895006,0.00010958,2]
[333506848,1722221445286,-524.45269963,0.00010958,2]
[333506849,1722221445295,-560.19232893,0.00010958,2]
[333506850,1722221445304,-505.67309893,0.00010958,2]
[333506851,1722221445313,-535.87562507,0.00010958,2]
[333506852,1722221445322,-559.9909058,0.00010958,2]
[333506853,1722221445332,-540.2909325,0.00010958,2]
[333506854,1722221445341,-500.0,0.00010958,2]
[333506855,1722221445351,-519.94580546,0.00010958,2]
[333506856,1722221445362,-510.633069,0.00010958,2]
[333506857,1722221445373,-505.30040024,0.00010958,2]
[333506858,1722221445383,-546.38604295,0.00010958,2]
[333506859,1722221445392,-524.47482536,0.00010958,2]
[333506860,1722221445402,-530.88919221,0.00010958,2]
[333506861,1722221445416,-610.16549672,0.00010958,2]
[333506862,1722221445425,-511.86059769,0.00010958,2]
[333506863,1722221445559,-507.88896322,0.00010958,2]
[333506864,1722221445587,-572.24551449,0.00010958,2]
[333506865,1722221445597,-503.5308019,0.00010958,2]
[333506866,1722221445607,-626.59483634,0.00010958,2]
[333506867,1722221445617,-506.3041211,0.00010958,2]
[333506868,1722221445629,-618.90178995,0.00010958,2]
[333506869,1722221445640,-531.34494788,0.00010958,2]
[333506870,1722221445649,-468.11704405,0.00010958,2]
[333506871,1722221445658,-540.94644422,0.00010958,2]
[333506872,1722221445668,-502.87696745,0.00010958,2]
[333506873,1722221445677,-526.43413492,0.00010958,2]
[333506874,1722221445686,-526.62223967,0.00010958,2]
[333506875,1722221445695,-575.90098401,0.00010958,2]
[333506876,1722221445705,-540.84950342,0.00010958,2]
[333506877,1722221445714,-505.2488557,0.00010958,2]
[333506878,1722221445723,-584.40726769,0.00010958,2]
[333506879,1722221445732,-590.4807624,0.00010958,2]
[333506880,1722221445742,-507.21875267,0.00010958,2]
[333506881,1722221445751,-511.25083673,0.00010958,2]
[333506882,1722221445760,-534.4032967,0.00010958,2]
[333506883,1722221445769,-540.46079845,0.00010958,2]
[333506884,1722221445779,-529.27336231,0.00010958,2]
[333506885,1722221445788,-504.78174294,0.00010958,2]
[333506886,1722221445797,-611.79794621,0.00010958,2]
[333506887,1722221445807,-505.19543975,0.00010958,2]
[333506888,1722221445816,-303.20543163,0.00010958,2]
[333506889,1722221445825,-542.52872464,0.00010958,2]
[333506890,1722221445834,-510.17900306,0.00010958,2]
[333506891,1722221445844,-515.82384197,0.00010958,2]
[333506892,1722221445853,-563.48349155,0.00010958,2]
[333506893,1722221445862,-500.0,0.00010958,2]
[333506894,1722221445872,-508.38316042,0.00010958,2]
[333506895,1722221445881,-500.0,0.00010958,2]
[333506896,1722221445890,-508.97530207,0.00010958,2]
[333506897,1722221445899,-578.25431649,0.00010958,2]
[333506898,1722221445908,-500.0,0.00010958,2]
[333506899,1722221445917,-500.0,0.00010958,2]
[333506900,1722221445926,-565.57744275,0.00010958,2]
[333506901,1722221445935,-590.19249932,0.00010958,2]
[333506902,1722221445944,-644.97250426,0.00010958,2]
[333506903,1722221445954,-501.48691965,0.00010958,2]
[333506904,1722221445963,-619.17498216,0.00010958,2]
[333506905,1722221445972,-310.00254144,0.00010958,2]
[333506906,1722221445982,-551.98987219,0.00010958,2]
[333506907,1722221445991,-503.77147955,0.00010958,2]
[333506908,1722221446000,-503.6398534,0.00010958,2]
[333506909,1722221446009,-500.75070593,0.00010958,2]
[333506910,1722221446018,-547.01790694,0.00010958,2]
[333506911,1722221446027,-535.20623268,0.00010958,2]
[333506912,1722221446036,-519.73297512,0.00010958,2]
[333506913,1722221446045,-560.4500109,0.00010958,2]
[333506914,1722221446054,-348.02716591,0.00010958,2]
[333506915,1722221446064,-500.0,0.00010958,2]
[333506916,1722221446074,-536.1290498,0.00010958,2]
[333506917,1722221446083,-526.33522164,0.00010958,2]
[333506918,1722221446092,-501.47579428,0.00010958,2]
[333506919,1722221446101,-552.79105496,0.00010958,2]
[333506920,1722221446111,-542.27547058,0.00010958,2]
[333506921,1722221446120,-618.69652545,0.00010958,2]
[333506922,1722221446129,-490.43343313,0.00010958,2]
[333506923,1722221446137,-535.55779404,0.00010958,2]
[333506924,1722221446146,-514.29343831,0.00010958,2]
[333506925,1722221446155,-502.37152862,0.00010958,2]
[333506926,1722221446164,-523.82322559,0.00010958,2]
[333506927,1722221446173,-545.52528348,0.00010958,2]
[333506928,1722221446182,-512.01835165,0.00010958,2]
[333506929,1722221446191,-637.93,0.00010958,2]
[333506930,1722221446201,-282.97508322,0.00010958,2]
[333506931,1722221446210,-500.0,0.00010958,2]
[333506932,1722221446219,-517.20343309,0.00010958,2]
[333506933,1722221446228,-500.0,0.00010958,2]
[333506934,1722221446238,-514.113402,0.00010958,2]
[333506935,1722221446247,-533.84430914,0.00010958,2]
[333506936,1722221446256,-647.00381469,0.00010958,2]
[333506937,1722221446265,-502.09687236,0.00010958,2]
[333506938,1722221446275,-500.91906355,0.00010958,2]
[333506939,1722221446284,-515.1966246,0.00010958,2]
[333506940,1722221446293,-502.63339526,0.00010958,2]
[333506941,1722221446302,-508.17528466,0.00010958,2]
[333506942,1722221446311,-502.57524351,0.00010958,2]
[333506943,1722221446320,-504.75638305,0.00010958,2]
[333506944,1722221446329,-502.92030558,0.00010958,2]
[333506945,1722221446339,-501.3959607,0.00010958,2]
[333506946,1722221446348,-500.0,0.00010958,2]
[333506947,1722221446357,-514.53867589,0.00010958,2]
[333506948,1722221446366,-505.72388872,0.00010958,2]
[333506949,1722221446376,-500.0,0.00010958,2]
[333506950,1722221446386,-526.79357117,0.00010958,2]
[333506951,1722221446395,-500.0,0.00010958,2]
[333506952,1722221446409,-506.41717488,0.00010958,2]
[333506953,1722221446418,-455.74,0.00010958,2]
[333506954,1722221446427,-500.0,0.00010958,2]
[333506955,1722221446436,-500.0,0.00010958,2]
[333506956,1722221446446,-506.7214193,0.00010958,2]
[333506957,1722221446455,-500.0,0.00010958,2]
[333506959,1722221446464,-509.97653561,0.00010958,2]
[333506961,1722221446474,-514.08904469,0.00010958,2]
[333506962,1722221446486,-512.94281599,0.00010958,2]
[333506963,1722221446495,-500.0,0.00010958,2]
[333506964,1722221446505,-503.20579059,0.00010958,2]
[333506965,1722221446514,-500.0,0.00010958,2]
[333506966,1722221446523,-500.0,0.00010958,2]
[333506967,1722221446533,-504.49663387,0.00010958,2]
[333506968,1722221446542,-515.21901328,0.00010958,2]
[333506969,1722221446551,-510.90965902,0.00010958,2]
[333506970,1722221446560,-509.26612253,0.00010958,2]
[333506971,1722221446569,-502.76117447,0.00010958,2]
[333506972,1722221446578,-509.0399831,0.00010958,2]
[333506973,1722221446588,-605.36116556,0.00010958,2]
[333506974,1722221446598,-500.0,0.00010958,2]
[333506975,1722221446607,-564.6243195,0.00010958,2]
[333506976,1722221446616,-638.6425394,0.00010958,2]
[333506977,1722221446626,-515.82905128,0.00010958,2]
[333506978,1722221446636,-321.84548816,0.00010958,2]
[333506979,1722221446645,-502.4654873,0.00010958,2]
[333506980,1722221446654,-516.48006987,0.00010958,2]
[333506981,1722221446663,-500.0,0.00010958,2]
[333506982,1722221446672,-212.44877374,0.00010958,2]
[333506983,1722221446681,-505.1518022,0.00010958,2]
[333506984,1722221446690,-501.5533768,0.00010958,2]
[333506985,1722221446700,-519.8168441,0.00010958,2]
[333506986,1722221446710,-500.0,0.00010958,2]
[333506987,1722221446719,-500.0,0.00010958,2]
[333506988,1722221446728,-504.46295049,0.00010958,2]
[333506989,1722221446738,-500.0,0.00010958,2]
[333506990,1722221446747,-506.69044865,0.00010958,2]
[333506991,1722221446756,-501.52962498,0.00010958,2]
[333506992,1722221446765,-523.49606023,0.00010958,2]
[333506993,1722221446774,-505.26504056,0.00010958,2]
[333506994,1722221446783,-501.81540472,0.00010958,2]
[333506995,1722221446792,-267.1545,0.00010958,2]
[333506996,1722221446802,-506.01955522,0.00010958,2]
[333506997,1722221446811,-511.69917048,0.00010958,2]
[333506998,1722221446820,-500.0,0.00010958,2]
[333506999,1722221446829,-207.27856225,0.00010958,2]
[333507000,1722221446838,-500.0,0.00010958,2]
[333507001,1722221446847,-506.44671927,0.00010958,2]
[333507002,1722221446856,-298.11759169,0.00010958,2]
[333507003,1722221446866,-501.67463421,0.00010958,2]
[333507004,1722221446875,-513.46639578,0.00010958,2]